[Event "Titled Tuesday Blitz January 10 Early 2023"]
[White "Ordekalog"]
[Black "Ansh M Shah"]
[BlackFideId "25033379"]
[WhiteElo "2635"]
[BlackElo "2171"]
[Result "1-0"]
[Round "05"]
[TimeControl "180+2"]
[Date "2023.01.10"]
[WhiteClock "0:00:04"]
[BlackClock "0:00:03"]

1. e4 {[%clk 0:03:00]}  c6 {[%clk 0:03:00]} 2. d4 {[%clk 0:02:59]}  d5 {[%clk 0:03:00]} 3. Nd2 {[%clk 0:02:59]}  dxe4 {[%clk 0:03:00]} 4. Nxe4 {[%clk 0:03:00]}  Bf5 {[%clk 0:03:01]} 5. Ng3 {[%clk 0:02:59]}  Bg6 {[%clk 0:03:01]} 6. Nf3 {[%clk 0:02:58]}  Nd7 {[%clk 0:03:01]} 7. h4 {[%clk 0:02:58]}  h6 {[%clk 0:03:01]} 8. h5 {[%clk 0:02:58]}  Bh7 {[%clk 0:03:01]} 9. Bd3 {[%clk 0:02:58]}  Bxd3 {[%clk 0:03:01]} 10. Qxd3 {[%clk 0:02:58]}  e6 {[%clk 0:03:02]} 11. Bd2 {[%clk 0:02:58]}  Ngf6 {[%clk 0:03:03]} 12. O-O-O {[%clk 0:02:57]}  Be7 {[%clk 0:03:04]} 13. Ne4 {[%clk 0:02:55]}  Nxe4 {[%clk 0:03:03]} 14. Qxe4 {[%clk 0:02:56]}  Nf6 {[%clk 0:03:04]} 15. Qe2 {[%clk 0:02:55]}  Qd5 {[%clk 0:03:04]} 16. c4 {[%clk 0:02:50]}  Qe4 {[%clk 0:03:04]} 17. Qxe4 {[%clk 0:02:47]}  Nxe4 {[%clk 0:03:05]} 18. Be3 {[%clk 0:02:48]}  Nf6 {[%clk 0:03:05]} 19. Ne5 {[%clk 0:02:41]}  Bd6 {[%clk 0:03:05]} 20. f3 {[%clk 0:02:39]}  Rc8 {[%clk 0:03:05]} 21. Nd3 {[%clk 0:02:30]}  b5 {[%clk 0:03:02]} 22. b3 {[%clk 0:02:26]}  a5 {[%clk 0:03:01]} 23. g4 {[%clk 0:02:24]}  Nd7 {[%clk 0:02:54]} 24. Kc2 {[%clk 0:02:22]}  a4 {[%clk 0:02:27]} 25. Rhe1 {[%clk 0:02:14]}  O-O {[%clk 0:02:24]} 26. Bf4 {[%clk 0:01:52]}  Bxf4 {[%clk 0:02:20]} 27. Nxf4 {[%clk 0:01:52]}  Ra8 {[%clk 0:01:48]} 28. Kc3 {[%clk 0:01:31]}  Rfb8 {[%clk 0:01:39]} 29. c5 {[%clk 0:01:21]}  Nf6 {[%clk 0:01:28]} 30. Rg1 {[%clk 0:01:14]}  axb3 {[%clk 0:01:03]} 31. axb3 {[%clk 0:01:14]}  b4+ {[%clk 0:01:03]} 32. Kb2 {[%clk 0:01:05]}  Ra3 {[%clk 0:00:52]} 33. Ra1 {[%clk 0:01:00]}  Rxa1 {[%clk 0:00:52]} 34. Rxa1 {[%clk 0:00:57]}  Rd8 {[%clk 0:00:52]} 35. Ne2 {[%clk 0:00:52]}  Nd5 {[%clk 0:00:48]} 36. Ra6 {[%clk 0:00:46]}  Rc8 {[%clk 0:00:47]} 37. Kc2 {[%clk 0:00:44]}  Rc7 {[%clk 0:00:40]} 38. Ra8+ {[%clk 0:00:40]}  Kh7 {[%clk 0:00:40]} 39. Kd3 {[%clk 0:00:41]}  g6 {[%clk 0:00:37]} 40. hxg6+ {[%clk 0:00:38]}  fxg6 {[%clk 0:00:38]} 41. Re8 {[%clk 0:00:33]}  Re7 {[%clk 0:00:34]} 42. Rc8 {[%clk 0:00:31]}  Rc7 {[%clk 0:00:32]} 43. Re8 {[%clk 0:00:30]}  Rf7 {[%clk 0:00:22]} 44. Rxe6 {[%clk 0:00:17]}  Rxf3+ {[%clk 0:00:22]} 45. Kc2 {[%clk 0:00:16]}  Re3 {[%clk 0:00:16]} 46. Nf4 {[%clk 0:00:14]}  Rc3+ {[%clk 0:00:13]} 47. Kb2 {[%clk 0:00:12]}  Nxf4 {[%clk 0:00:14]} 48. Rxc6 {[%clk 0:00:12]}  Ne2 {[%clk 0:00:14]} 49. d5 {[%clk 0:00:11]}  Nd4 {[%clk 0:00:14]} 50. Rc7+ {[%clk 0:00:10]}  Kg8 {[%clk 0:00:14]} 51. d6 {[%clk 0:00:11]}  Rxb3+ {[%clk 0:00:14]} 52. Ka2 {[%clk 0:00:11]}  Ra3+ {[%clk 0:00:14]} 53. Kb2 {[%clk 0:00:11]}  Nb5 {[%clk 0:00:13]} 54. d7 {[%clk 0:00:08]}  Rd3 {[%clk 0:00:11]} 55. Rc8+ {[%clk 0:00:07]}  Kf7 {[%clk 0:00:11]} 56. d8=Q {[%clk 0:00:08]}  Rxd8 {[%clk 0:00:12]} 57. Rxd8 {[%clk 0:00:09]}  Nc3 {[%clk 0:00:11]} 58. Rd6 {[%clk 0:00:07]}  Ne4 {[%clk 0:00:10]} 59. Rc6 {[%clk 0:00:06]}  h5 {[%clk 0:00:09]} 60. gxh5 {[%clk 0:00:06]}  gxh5 {[%clk 0:00:10]} 61. Kb3 {[%clk 0:00:05]}  Kg7 {[%clk 0:00:09]} 62. Kxb4 {[%clk 0:00:05]}  h4 {[%clk 0:00:10]} 63. Re6 {[%clk 0:00:05]}  Nf6 {[%clk 0:00:08]} 64. Re7+ {[%clk 0:00:03]}  Kg6 {[%clk 0:00:08]} 65. Re1 {[%clk 0:00:03]}  Kg5 {[%clk 0:00:07]} 66. Kb5 {[%clk 0:00:03]}  h3 {[%clk 0:00:07]} 67. c6 {[%clk 0:00:03]}  Nd5 {[%clk 0:00:07]} 68. Kc5 {[%clk 0:00:03]}  Nc7 {[%clk 0:00:07]} 69. Kd6 {[%clk 0:00:03]}  Nb5+ {[%clk 0:00:07]} 70. Kc5 {[%clk 0:00:04]}  Nc7 {[%clk 0:00:07]} 71. Re7 {[%clk 0:00:04]}  h2 {[%clk 0:00:06]} 72. Rh7 {[%clk 0:00:04]}  Ne6+ {[%clk 0:00:06]} 73. Kb6 {[%clk 0:00:04]}  Nd8 {[%clk 0:00:03]} 74. Rxh2 {[%clk 0:00:04]}  Nxc6 {[%clk 0:00:03]} 75. Rg2+ {[%clk 0:00:03]}  Kf4 {[%clk 0:00:03]} 76. Kxc6 {[%clk 0:00:04]}  Kf3 {[%clk 0:00:03]} 77. Ra2 {[%clk 0:00:04]} 1-0


[Site "https://www.chess.com"]

[Event "Titled Tuesday Blitz January 10 Early 2023"]
[White "Buchenau, Frank"]
[Black "Tica, Sven"]
[WhiteFideId "4604350"]
[BlackFideId "14526948"]
[WhiteElo "2222"]
[BlackElo "2431"]
[Result "1-0"]
[Round "05"]
[TimeControl "180+2"]
[Date "2023.01.10"]
[WhiteClock "0:00:22"]
[BlackClock "0:00:55"]

1. e4 {[%clk 0:03:00]}  g6 {[%clk 0:02:41]} 2. d4 {[%clk 0:03:00]}  Bg7 {[%clk 0:02:42]} 3. Nc3 {[%clk 0:03:00]}  a6 {[%clk 0:02:42]} 4. Nf3 {[%clk 0:03:00]}  b5 {[%clk 0:02:43]} 5. a4 {[%clk 0:02:56]}  b4 {[%clk 0:02:43]} 6. Nd5 {[%clk 0:02:56]}  a5 {[%clk 0:02:43]} 7. c3 {[%clk 0:02:54]}  e6 {[%clk 0:02:42]} 8. Nf4 {[%clk 0:02:46]}  c5 {[%clk 0:02:36]} 9. Be3 {[%clk 0:02:37]}  Nf6 {[%clk 0:02:26]} 10. e5 {[%clk 0:02:34]}  Ng4 {[%clk 0:02:25]} 11. Bd2 {[%clk 0:02:28]}  Ba6 {[%clk 0:02:19]} 12. Bxa6 {[%clk 0:02:14]}  Nxa6 {[%clk 0:02:19]} 13. O-O {[%clk 0:02:01]}  O-O {[%clk 0:02:14]} 14. h3 {[%clk 0:01:52]}  Nh6 {[%clk 0:02:13]} 15. d5 {[%clk 0:01:50]}  Nf5 {[%clk 0:01:55]} 16. d6 {[%clk 0:01:26]}  f6 {[%clk 0:01:42]} 17. exf6 {[%clk 0:01:09]}  Qxf6 {[%clk 0:01:43]} 18. Be3 {[%clk 0:00:55]}  Bh6 {[%clk 0:01:20]} 19. Qd3 {[%clk 0:00:45]}  Nxe3 {[%clk 0:01:08]} 20. fxe3 {[%clk 0:00:46]}  Bxf4 {[%clk 0:01:09]} 21. exf4 {[%clk 0:00:45]}  Qxf4 {[%clk 0:01:10]} 22. Nh2 {[%clk 0:00:33]}  Qg5 {[%clk 0:01:07]} 23. Rxf8+ {[%clk 0:00:32]}  Kxf8 {[%clk 0:01:07]} 24. Qf3+ {[%clk 0:00:31]}  Kg7 {[%clk 0:00:55]} 25. Qxa8 {[%clk 0:00:30]}  Qd2 {[%clk 0:00:55]} 26. Rf1 {[%clk 0:00:22]} 1-0


[Site "https://www.chess.com"]

[Event "Titled Tuesday Blitz January 10 Early 2023"]
[White "Ladan, Nicholas"]
[Black "Barria Zuniga, Daniel"]
[WhiteFideId "30918855"]
[BlackFideId "3400816"]
[WhiteElo "2228"]
[BlackElo "2341"]
[Result "1-0"]
[Round "05"]
[TimeControl "180+2"]
[Date "2023.01.10"]
[WhiteClock "0:01:00"]
[BlackClock "0:00:51"]

1. b4 {[%clk 0:03:00]}  e5 {[%clk 0:02:58]} 2. Bb2 {[%clk 0:03:01]}  f6 {[%clk 0:02:58]} 3. a3 {[%clk 0:03:00]}  c5 {[%clk 0:02:57]} 4. e4 {[%clk 0:02:54]}  cxb4 {[%clk 0:02:46]} 5. Bxe5 {[%clk 0:02:54]}  Nc6 {[%clk 0:02:42]} 6. Bb2 {[%clk 0:02:54]}  d5 {[%clk 0:02:40]} 7. Qh5+ {[%clk 0:02:49]}  g6 {[%clk 0:02:39]} 8. Qxd5 {[%clk 0:02:50]}  Bd7 {[%clk 0:02:33]} 9. Bc4 {[%clk 0:02:47]}  Qe7 {[%clk 0:02:33]} 10. axb4 {[%clk 0:02:36]}  Qxb4 {[%clk 0:02:34]} 11. Ba3 {[%clk 0:02:26]}  O-O-O {[%clk 0:02:20]} 12. Bxb4 {[%clk 0:02:23]}  Nxb4 {[%clk 0:02:21]} 13. Qa5 {[%clk 0:02:03]}  Nxc2+ {[%clk 0:02:22]} 14. Kf1 {[%clk 0:02:01]}  Nxa1 {[%clk 0:02:23]} 15. Qxa1 {[%clk 0:02:01]}  Ne7 {[%clk 0:02:23]} 16. Nf3 {[%clk 0:01:57]}  Nc6 {[%clk 0:02:24]} 17. Nc3 {[%clk 0:01:57]}  Bc5 {[%clk 0:02:22]} 18. Nd5 {[%clk 0:01:54]}  f5 {[%clk 0:02:16]} 19. d4 {[%clk 0:01:52]}  Bb6 {[%clk 0:02:11]} 20. Nxb6+ {[%clk 0:01:51]}  axb6 {[%clk 0:02:11]} 21. e5 {[%clk 0:01:47]}  Na5 {[%clk 0:02:09]} 22. Bf7 {[%clk 0:01:39]}  Bc6 {[%clk 0:01:52]} 23. h4 {[%clk 0:01:34]}  Kc7 {[%clk 0:01:44]} 24. e6 {[%clk 0:01:32]}  Bd5 {[%clk 0:01:44]} 25. Ne5 {[%clk 0:01:28]}  Ra8 {[%clk 0:01:28]} 26. Qc3+ {[%clk 0:01:22]}  Nc6 {[%clk 0:01:27]} 27. Nxc6 {[%clk 0:01:19]}  bxc6 {[%clk 0:01:26]} 28. h5 {[%clk 0:01:12]}  Kb7 {[%clk 0:01:14]} 29. hxg6 {[%clk 0:01:11]}  hxg6 {[%clk 0:01:15]} 30. Rxh8 {[%clk 0:01:09]}  Rxh8 {[%clk 0:01:16]} 31. Qg3 {[%clk 0:01:08]}  Rh1+ {[%clk 0:01:09]} 32. Ke2 {[%clk 0:01:07]}  Ra1 {[%clk 0:01:10]} 33. Qxg6 {[%clk 0:01:06]}  f4 {[%clk 0:01:01]} 34. e7 {[%clk 0:01:00]}  Ra2+ {[%clk 0:00:56]} 35. Kd3 {[%clk 0:00:59]}  Ra3+ {[%clk 0:00:53]} 36. Kc2 {[%clk 0:01:00]}  Ra2+ {[%clk 0:00:51]} 37. Kb1 {[%clk 0:01:00]} 1-0


[Site "https://www.chess.com"]

[Event "Titled Tuesday Blitz January 10 Early 2023"]
[White "Barrientos, Sergio E"]
[Black "Begunov, Konstantin"]
[WhiteFideId "4401824"]
[BlackFideId "4118510"]
[WhiteElo "2479"]
[BlackElo "2325"]
[Result "1-0"]
[Round "05"]
[TimeControl "180+2"]
[Date "2023.01.10"]
[WhiteClock "0:00:40"]
[BlackClock "0:00:09"]

1. e4 {[%clk 0:02:58]}  c5 {[%clk 0:02:59]} 2. Nf3 {[%clk 0:02:57]}  d6 {[%clk 0:03:00]} 3. d4 {[%clk 0:02:55]}  cxd4 {[%clk 0:03:00]} 4. Nxd4 {[%clk 0:02:55]}  Nf6 {[%clk 0:03:01]} 5. Nc3 {[%clk 0:02:55]}  a6 {[%clk 0:03:02]} 6. Bg5 {[%clk 0:02:55]}  e6 {[%clk 0:03:02]} 7. f4 {[%clk 0:02:55]}  Qb6 {[%clk 0:03:03]} 8. Qd2 {[%clk 0:02:49]}  Nc6 {[%clk 0:03:03]} 9. O-O-O {[%clk 0:02:44]}  Bd7 {[%clk 0:03:03]} 10. Be2 {[%clk 0:02:38]}  Nxd4 {[%clk 0:03:00]} 11. Qxd4 {[%clk 0:02:38]}  Qxd4 {[%clk 0:03:00]} 12. Rxd4 {[%clk 0:02:39]}  Bc6 {[%clk 0:03:01]} 13. Bxf6 {[%clk 0:02:39]}  gxf6 {[%clk 0:03:00]} 14. Bh5 {[%clk 0:02:39]}  Bh6 {[%clk 0:02:48]} 15. g3 {[%clk 0:02:37]}  e5 {[%clk 0:02:44]} 16. Rxd6 {[%clk 0:02:34]}  exf4 {[%clk 0:02:42]} 17. Rxf6 {[%clk 0:02:25]}  Bg7 {[%clk 0:02:10]} 18. Rxf7 {[%clk 0:02:13]}  Bxc3 {[%clk 0:02:09]} 19. Rxf4+ {[%clk 0:01:53]}  Ke7 {[%clk 0:01:55]} 20. bxc3 {[%clk 0:01:54]}  Rhf8 {[%clk 0:01:51]} 21. Rhf1 {[%clk 0:01:52]}  Rxf4 {[%clk 0:01:36]} 22. gxf4 {[%clk 0:01:42]}  Rg8 {[%clk 0:01:35]} 23. Bf3 {[%clk 0:01:41]}  Bb5 {[%clk 0:01:13]} 24. Rd1 {[%clk 0:01:39]}  Rc8 {[%clk 0:01:05]} 25. Kb2 {[%clk 0:01:38]}  Rc4 {[%clk 0:01:01]} 26. Rd4 {[%clk 0:01:33]}  Rc5 {[%clk 0:01:01]} 27. e5 {[%clk 0:01:20]}  b6 {[%clk 0:00:53]} 28. Bd5 {[%clk 0:01:16]}  Bd7 {[%clk 0:00:51]} 29. c4 {[%clk 0:01:14]}  Bf5 {[%clk 0:00:48]} 30. a3 {[%clk 0:01:14]}  b5 {[%clk 0:00:45]} 31. Kb3 {[%clk 0:01:12]}  bxc4+ {[%clk 0:00:43]} 32. Bxc4 {[%clk 0:01:13]}  a5 {[%clk 0:00:42]} 33. a4 {[%clk 0:01:10]}  Rc8 {[%clk 0:00:42]} 34. c3 {[%clk 0:01:09]}  Rb8+ {[%clk 0:00:41]} 35. Bb5 {[%clk 0:01:08]}  Rg8 {[%clk 0:00:41]} 36. Rd6 {[%clk 0:01:05]}  Rg2 {[%clk 0:00:39]} 37. Rh6 {[%clk 0:00:59]}  Rf2 {[%clk 0:00:34]} 38. Rh4 {[%clk 0:00:54]}  Ke6 {[%clk 0:00:32]} 39. Bc4+ {[%clk 0:00:54]}  Ke7 {[%clk 0:00:32]} 40. Bd5 {[%clk 0:00:54]}  Bd3 {[%clk 0:00:29]} 41. c4 {[%clk 0:00:53]}  Bf5 {[%clk 0:00:28]} 42. c5 {[%clk 0:00:51]}  Rd2 {[%clk 0:00:27]} 43. Bc4 {[%clk 0:00:50]}  Rf2 {[%clk 0:00:22]} 44. Kc3 {[%clk 0:00:44]}  Kd7 {[%clk 0:00:17]} 45. Bb5+ {[%clk 0:00:44]}  Kc7 {[%clk 0:00:17]} 46. Kd4 {[%clk 0:00:42]}  Rd2+ {[%clk 0:00:16]} 47. Ke3 {[%clk 0:00:42]}  Rc2 {[%clk 0:00:15]} 48. Rh5 {[%clk 0:00:42]}  Rc3+ {[%clk 0:00:14]} 49. Kd4 {[%clk 0:00:39]}  Bg6 {[%clk 0:00:09]} 50. Rxh7+ {[%clk 0:00:39]}  Bxh7 {[%clk 0:00:09]} 51. Kxc3 {[%clk 0:00:40]} 1-0


[Site "https://www.chess.com"]

[Event "Titled Tuesday Blitz January 10 Early 2023"]
[White "Goldin, Roman"]
[Black "Djokic, Mihailo"]
[WhiteFideId "2803860"]
[BlackFideId "976440"]
[WhiteElo "2322"]
[BlackElo "2192"]
[Result "1-0"]
[Round "05"]
[TimeControl "180+2"]
[Date "2023.01.10"]
[WhiteClock "0:00:08"]
[BlackClock "0:01:06"]

1. Nf3 {[%clk 0:02:59]}  Nf6 {[%clk 0:03:00]} 2. e3 {[%clk 0:02:54]}  g6 {[%clk 0:02:59]} 3. b4 {[%clk 0:02:54]}  Bg7 {[%clk 0:02:58]} 4. Bb2 {[%clk 0:02:54]}  O-O {[%clk 0:02:58]} 5. c4 {[%clk 0:02:55]}  d6 {[%clk 0:02:58]} 6. Be2 {[%clk 0:02:50]}  e5 {[%clk 0:02:55]} 7. d3 {[%clk 0:02:50]}  Re8 {[%clk 0:02:56]} 8. O-O {[%clk 0:02:49]}  a5 {[%clk 0:02:56]} 9. b5 {[%clk 0:02:49]}  Nbd7 {[%clk 0:02:56]} 10. Nc3 {[%clk 0:02:49]}  Nc5 {[%clk 0:02:54]} 11. Rb1 {[%clk 0:02:34]}  Bf5 {[%clk 0:02:36]} 12. e4 {[%clk 0:02:20]}  Bg4 {[%clk 0:02:33]} 13. Ne1 {[%clk 0:02:08]}  Bxe2 {[%clk 0:02:31]} 14. Qxe2 {[%clk 0:02:07]}  c6 {[%clk 0:02:31]} 15. Nc2 {[%clk 0:02:04]}  Rc8 {[%clk 0:02:30]} 16. Ne3 {[%clk 0:02:01]}  Ne6 {[%clk 0:02:29]} 17. Na4 {[%clk 0:01:47]}  cxb5 {[%clk 0:02:22]} 18. cxb5 {[%clk 0:01:46]}  Nf4 {[%clk 0:02:22]} 19. Qd2 {[%clk 0:01:33]}  d5 {[%clk 0:02:22]} 20. g3 {[%clk 0:01:13]}  Nh3+ {[%clk 0:02:20]} 21. Kg2 {[%clk 0:01:12]}  Ng5 {[%clk 0:02:12]} 22. h4 {[%clk 0:01:07]}  Ne6 {[%clk 0:02:03]} 23. Bxe5 {[%clk 0:00:54]}  dxe4 {[%clk 0:02:03]} 24. d4 {[%clk 0:00:45]}  h5 {[%clk 0:01:56]} 25. b6 {[%clk 0:00:34]}  Nd5 {[%clk 0:01:51]} 26. Qxa5 {[%clk 0:00:28]}  Nxe3+ {[%clk 0:01:32]} 27. fxe3 {[%clk 0:00:28]}  Rc2+ {[%clk 0:01:31]} 28. Rf2 {[%clk 0:00:24]}  Rxf2+ {[%clk 0:01:26]} 29. Kxf2 {[%clk 0:00:23]}  f6 {[%clk 0:01:24]} 30. Bc7 {[%clk 0:00:17]}  Qe7 {[%clk 0:01:10]} 31. Qd5 {[%clk 0:00:12]}  Kh7 {[%clk 0:01:08]} 32. Nc5 {[%clk 0:00:12]}  Nxc7 {[%clk 0:01:07]} 33. bxc7 {[%clk 0:00:12]}  Qxc7 {[%clk 0:01:08]} 34. Rxb7 {[%clk 0:00:12]}  Qa5 {[%clk 0:01:08]} 35. Rxg7+ {[%clk 0:00:09]}  Kxg7 {[%clk 0:01:08]} 36. Ne6+ {[%clk 0:00:08]}  Rxe6 {[%clk 0:01:06]} 37. Qxa5 {[%clk 0:00:09]}  Ra6 {[%clk 0:01:06]} 38. Qc7+ {[%clk 0:00:09]}  Kh6 {[%clk 0:01:06]} 39. Qc4 {[%clk 0:00:08]}  Ra5 {[%clk 0:01:06]} 40. d5 {[%clk 0:00:08]}  f5 {[%clk 0:01:07]} 41. d6 {[%clk 0:00:09]}  Rd5 {[%clk 0:01:06]} 42. Qxd5 {[%clk 0:00:08]} 1-0


[Site "https://www.chess.com"]

[Event "Titled Tuesday Blitz January 10 Early 2023"]
[White "Fernandez Garcia, Gumersindo"]
[Black "Bodnaruk, Anastasia"]
[WhiteFideId "24516740"]
[BlackFideId "4181751"]
[WhiteElo "2160"]
[BlackElo "2350"]
[Result "1-0"]
[Round "05"]
[TimeControl "180+2"]
[Date "2023.01.10"]
[WhiteClock "0:00:08"]
[BlackClock "0:00:03"]

1. Nf3 {[%clk 0:01:58]}  Nf6 {[%clk 0:02:53]} 2. d4 {[%clk 0:01:58]}  g6 {[%clk 0:02:53]} 3. c4 {[%clk 0:01:59]}  Bg7 {[%clk 0:02:54]} 4. Nc3 {[%clk 0:01:59]}  d6 {[%clk 0:02:53]} 5. Bg5 {[%clk 0:01:59]}  O-O {[%clk 0:02:50]} 6. e3 {[%clk 0:01:59]}  c5 {[%clk 0:02:42]} 7. Be2 {[%clk 0:01:58]}  cxd4 {[%clk 0:02:33]} 8. exd4 {[%clk 0:01:56]}  Nc6 {[%clk 0:02:11]} 9. O-O {[%clk 0:01:56]}  h6 {[%clk 0:02:10]} 10. Bh4 {[%clk 0:01:52]}  g5 {[%clk 0:02:06]} 11. Bg3 {[%clk 0:01:50]}  Nh5 {[%clk 0:02:05]} 12. Rc1 {[%clk 0:01:45]}  Nxg3 {[%clk 0:02:04]} 13. hxg3 {[%clk 0:01:44]}  f5 {[%clk 0:01:58]} 14. d5 {[%clk 0:01:42]}  Ne5 {[%clk 0:01:58]} 15. Nxe5 {[%clk 0:01:42]}  Bxe5 {[%clk 0:01:53]} 16. Bd3 {[%clk 0:01:38]}  Bd7 {[%clk 0:01:42]} 17. Re1 {[%clk 0:01:38]}  Bg7 {[%clk 0:01:20]} 18. b3 {[%clk 0:01:38]}  Rf7 {[%clk 0:01:14]} 19. Qh5 {[%clk 0:01:33]}  Qb6 {[%clk 0:01:11]} 20. Re2 {[%clk 0:01:11]}  Qd4 {[%clk 0:01:11]} 21. Bb1 {[%clk 0:01:05]}  a6 {[%clk 0:00:58]} 22. Qf3 {[%clk 0:00:49]}  b5 {[%clk 0:00:54]} 23. Qd3 {[%clk 0:00:47]}  bxc4 {[%clk 0:00:37]} 24. Qxd4 {[%clk 0:00:43]}  Bxd4 {[%clk 0:00:37]} 25. bxc4 {[%clk 0:00:44]}  Rc8 {[%clk 0:00:37]} 26. Bd3 {[%clk 0:00:44]}  Rb8 {[%clk 0:00:31]} 27. Nd1 {[%clk 0:00:43]}  f4 {[%clk 0:00:29]} 28. gxf4 {[%clk 0:00:40]}  gxf4 {[%clk 0:00:28]} 29. Bg6 {[%clk 0:00:36]}  Rg7 {[%clk 0:00:28]} 30. Be4 {[%clk 0:00:35]}  Bg4 {[%clk 0:00:24]} 31. Rd2 {[%clk 0:00:33]}  Bc5 {[%clk 0:00:25]} 32. Nb2 {[%clk 0:00:26]}  Ba3 {[%clk 0:00:23]} 33. Rcc2 {[%clk 0:00:25]}  h5 {[%clk 0:00:17]} 34. f3 {[%clk 0:00:24]}  Bd7 {[%clk 0:00:17]} 35. Kf1 {[%clk 0:00:24]}  h4 {[%clk 0:00:17]} 36. Re2 {[%clk 0:00:18]}  Kf7 {[%clk 0:00:17]} 37. Bd3 {[%clk 0:00:18]}  Kf6 {[%clk 0:00:15]} 38. Be4 {[%clk 0:00:17]}  Rgg8 {[%clk 0:00:15]} 39. Bd3 {[%clk 0:00:17]}  Rb4 {[%clk 0:00:15]} 40. Nd1 {[%clk 0:00:16]}  Rb1 {[%clk 0:00:14]} 41. Rcd2 {[%clk 0:00:16]}  Bb4 {[%clk 0:00:13]} 42. Bxb1 {[%clk 0:00:16]}  Bxd2 {[%clk 0:00:13]} 43. Rxd2 {[%clk 0:00:15]}  h3 {[%clk 0:00:13]} 44. gxh3 {[%clk 0:00:15]}  Bxh3+ {[%clk 0:00:13]} 45. Ke2 {[%clk 0:00:15]}  Rg2+ {[%clk 0:00:13]} 46. Nf2 {[%clk 0:00:15]}  Bd7 {[%clk 0:00:10]} 47. Rd1 {[%clk 0:00:15]}  Ba4 {[%clk 0:00:09]} 48. Rh1 {[%clk 0:00:15]}  Kf7 {[%clk 0:00:09]} 49. Rh6 {[%clk 0:00:15]}  Rg1 {[%clk 0:00:07]} 50. Bd3 {[%clk 0:00:14]}  Ra1 {[%clk 0:00:07]} 51. Rh4 {[%clk 0:00:14]}  Rxa2+ {[%clk 0:00:07]} 52. Kf1 {[%clk 0:00:15]}  Rd2 {[%clk 0:00:07]} 53. Rxf4+ {[%clk 0:00:14]}  Ke8 {[%clk 0:00:07]} 54. Bg6+ {[%clk 0:00:13]}  Kd7 {[%clk 0:00:08]} 55. Ne4 {[%clk 0:00:13]}  Rb2 {[%clk 0:00:07]} 56. Rf8 {[%clk 0:00:12]}  Bc2 {[%clk 0:00:06]} 57. Be8+ {[%clk 0:00:12]}  Kc7 {[%clk 0:00:06]} 58. Bc6 {[%clk 0:00:12]}  a5 {[%clk 0:00:06]} 59. Ra8 {[%clk 0:00:11]}  Rb1+ {[%clk 0:00:06]} 60. Ke2 {[%clk 0:00:10]}  a4 {[%clk 0:00:05]} 61. Ra7+ {[%clk 0:00:10]}  Kd8 {[%clk 0:00:05]} 62. Ng5 {[%clk 0:00:09]}  Bf5 {[%clk 0:00:04]} 63. Nf7+ {[%clk 0:00:08]}  Kc8 {[%clk 0:00:04]} 64. Rxa4 {[%clk 0:00:06]}  Rb2+ {[%clk 0:00:03]} 65. Ke3 {[%clk 0:00:06]}  Rc2 {[%clk 0:00:03]} 66. Kf4 {[%clk 0:00:06]}  Bg6 {[%clk 0:00:03]} 67. Ng5 {[%clk 0:00:07]}  Bh5 {[%clk 0:00:03]} 68. Ne6 {[%clk 0:00:07]}  Kb8 {[%clk 0:00:03]} 69. Ra8# {[%clk 0:00:08]} 1-0


[Site "https://www.chess.com"]

[Event "Titled Tuesday Blitz January 10 Early 2023"]
[White "Ashraf, Artin"]
[Black "Jaskolka, Tomasz"]
[WhiteFideId "22514805"]
[BlackFideId "1170791"]
[WhiteElo "2314"]
[BlackElo "2238"]
[Result "1-0"]
[Round "05"]
[TimeControl "180+2"]
[Date "2023.01.10"]
[WhiteClock "0:00:57"]
[BlackClock "0:00:21"]

1. Nf3 {[%clk 0:03:00]}  d5 {[%clk 0:02:59]} 2. g3 {[%clk 0:03:00]}  Nd7 {[%clk 0:02:57]} 3. c4 {[%clk 0:02:49]}  dxc4 {[%clk 0:02:57]} 4. Qa4 {[%clk 0:02:45]}  a6 {[%clk 0:02:44]} 5. Qxc4 {[%clk 0:02:44]}  b5 {[%clk 0:02:45]} 6. Qc2 {[%clk 0:02:39]}  Bb7 {[%clk 0:02:44]} 7. Bg2 {[%clk 0:02:40]}  Ngf6 {[%clk 0:02:42]} 8. O-O {[%clk 0:02:38]}  e6 {[%clk 0:02:40]} 9. d3 {[%clk 0:02:36]}  c5 {[%clk 0:02:39]} 10. a4 {[%clk 0:02:36]}  Be7 {[%clk 0:02:36]} 11. Nbd2 {[%clk 0:02:31]}  O-O {[%clk 0:02:35]} 12. Nb3 {[%clk 0:02:31]}  Nd5 {[%clk 0:02:13]} 13. Bd2 {[%clk 0:02:27]}  Qb6 {[%clk 0:02:00]} 14. Na5 {[%clk 0:02:25]}  Rab8 {[%clk 0:01:53]} 15. Nxb7 {[%clk 0:02:23]}  Qxb7 {[%clk 0:01:48]} 16. axb5 {[%clk 0:02:16]}  axb5 {[%clk 0:01:49]} 17. e4 {[%clk 0:02:16]}  N5b6 {[%clk 0:01:43]} 18. Ra5 {[%clk 0:02:03]}  Qc6 {[%clk 0:01:25]} 19. Nd4 {[%clk 0:02:01]}  Qb7 {[%clk 0:01:17]} 20. Nxb5 {[%clk 0:02:00]}  e5 {[%clk 0:01:07]} 21. Rfa1 {[%clk 0:01:44]}  Ra8 {[%clk 0:01:05]} 22. b3 {[%clk 0:01:37]}  Qc6 {[%clk 0:01:00]} 23. Nc3 {[%clk 0:01:35]}  Rxa5 {[%clk 0:00:54]} 24. Rxa5 {[%clk 0:01:36]}  Ra8 {[%clk 0:00:55]} 25. Qa2 {[%clk 0:01:31]}  f6 {[%clk 0:00:50]} 26. Nd5 {[%clk 0:01:24]}  Bd8 {[%clk 0:00:45]} 27. b4 {[%clk 0:01:21]}  Rxa5 {[%clk 0:00:20]} 28. Nxf6+ {[%clk 0:01:00]}  Kf8 {[%clk 0:00:20]} 29. Qg8+ {[%clk 0:00:59]}  Ke7 {[%clk 0:00:21]} 30. Qxg7+ {[%clk 0:00:59]}  Kd6 {[%clk 0:00:21]} 31. Ne8+ {[%clk 0:00:57]}  Ke6 {[%clk 0:00:21]} 32. Bh3# {[%clk 0:00:57]} 1-0


[Site "https://www.chess.com"]